bitfinex/quotes_SOLUSD_20240822
["timestamp","ask_amount","ask_price","bid_price","bid_amount"]
[1724352068744,13.06,143.63,143.58,0.25098]
[1724352068992,13.06,143.63,143.57,1.74348895]
[1724352069151,13.06,143.63,143.58,0.25098]
[1724352069758,13.06,143.63,143.57,0.25098]
[1724352072766,22.3608,143.66,143.57,0.25098]
[1724352072975,13.06,143.64,143.57,0.25098]
[1724352074577,13.06,143.64,143.57,21.2918759]
[1724352074751,13.06,143.64,143.58,65.0]
[1724352074950,15.3999,143.66,143.6,13.06]
[1724352075276,15.3999,143.66,143.61,46.16652124]
[1724352077481,6.0811,143.67,143.62,0.12549]
[1724352079278,6.0811,143.67,143.61,45.12549]
[1724352079649,6.0811,143.67,143.61,0.12549]
[1724352079850,6.0811,143.67,143.62,45.0]
[1724352080154,6.0811,143.67,143.61,0.25098]
[1724352083256,6.0811,143.67,143.61,0.12549]
[1724352083460,6.0811,143.67,143.6,20.0]
[1724352084660,6.0811,143.67,143.61,45.25098]
[1724352095687,6.64425859,143.68,143.61,45.25098]
[1724352095997,13.06,143.67,143.61,45.25098]
[1724352098797,13.06,143.67,143.62,45.0]
[1724352098976,13.06,143.67,143.61,0.25098]
[1724352112011,1.74025397,143.68,143.61,0.25098]
[1724352112213,29.941,143.69,143.61,0.25098]
[1724352112514,13.06,143.68,143.61,0.25098]
[1724352117495,1.74025788,143.67,143.61,0.25098]
[1724352118599,20.02,143.68,143.61,0.25098]
[1724352120120,1.74034703,143.67,143.61,0.25098]
[1724352120423,13.06,143.66,143.61,0.25098]
[1724352121116,1.74039059,143.65,143.58,7.27872391]
[1724352121433,13.06,143.66,143.59,38.13794265]
[1724352121728,13.06,143.66,143.6,6.47326202]
[1724352121906,13.06,143.64,143.59,27.64728451]
[1724352122105,13.06,143.64,143.59,20.0]
[1724352122312,13.06,143.64,143.56,27.28022922]
[1724352122624,13.06,143.64,143.57,33.06]
[1724352122922,13.06,143.66,143.58,20.0]
[1724352123123,13.06,143.66,143.59,45.25098]
[1724352126823,20.021,143.66,143.59,45.25098]
[1724352127613,13.06,143.66,143.59,45.25098]
[1724352128415,13.06,143.64,143.59,45.25098]
[1724352128610,13.06,143.64,143.59,45.12549]
[1724352128932,14.80078216,143.64,143.59,45.0]
[1724352129613,13.06,143.64,143.59,45.0]
[1724352132037,13.06,143.62,143.58,20.0]
[1724352132328,13.06,143.62,143.57,20.0]
[1724352133422,13.06,143.62,143.58,45.0]
[1724352138136,13.06,143.6,143.56,7.28022922]
[1724352138348,13.06,143.6,143.53,26.4954]
[1724352138653,22.1138,143.63,143.54,20.0]
[1724352138818,35.1738,143.63,143.55,33.06]
[1724352139024,28.2115,143.63,143.55,33.06]
[1724352139262,28.2115,143.63,143.56,45.0]
[1724352139436,28.2115,143.63,143.57,0.12549]
[1724352140547,28.2115,143.63,143.57,0.25098]
[1724352142455,15.1515,143.63,143.57,0.25098]
[1724352142836,15.9452,143.67,143.58,13.06]
[1724352143056,15.9452,143.67,143.59,65.25098]
[1724352144136,15.9452,143.67,143.59,85.25098]
[1724352148368,1.21334576,143.7,143.62,13.06]
[1724352148671,29.0052,143.71,143.63,46.29687942]
[1724352149753,35.9637,143.71,143.63,45.25098]
[1724352150145,22.9037,143.71,143.63,45.25098]
[1724352150351,13.06,143.7,143.63,45.25098]
[1724352153577,22.9037,143.71,143.63,45.25098]
[1724352153772,35.9637,143.71,143.63,45.25098]
[1724352155678,13.06,143.7,143.63,45.25098]
[1724352157277,22.9037,143.71,143.63,45.25098]
[1724352157479,13.06,143.7,143.63,45.25098]
[1724352158874,20.019,143.7,143.63,45.25098]
[1724352159102,20.019,143.7,143.63,0.25098]
[1724352159277,21.75913254,143.7,143.62,45.0]
[1724352159483,13.06,143.68,143.61,45.0]
[1724352159660,13.06,143.68,143.62,20.25098]
[1724352159862,13.06,143.68,143.63,45.0]
[1724352161780,6.959,143.7,143.63,45.0]
[1724352162084,20.019,143.7,143.63,45.0]
[1724352163587,6.959,143.7,143.63,45.0]
[1724352163763,20.019,143.7,143.63,45.0]
[1724352168296,13.06,143.7,143.63,45.0]
[1724352172798,20.0189,143.7,143.63,45.0]
[1724352174081,1.74014062,143.69,143.63,45.0]
[1724352174286,13.06,143.68,143.63,45.0]
[1724352174590,1.74030926,143.67,143.63,45.0]
[1724352175182,13.06,143.68,143.63,45.0]
[1724352175595,13.06,143.68,143.61,6.1703]
[1724352175899,13.06,143.68,143.62,65.0]
[1724352180388,13.06,143.66,143.59,16.3722]
[1724352180700,13.06,143.66,143.6,20.0]
[1724352181494,20.02,143.68,143.6,33.06]
[1724352181708,20.02,143.68,143.61,45.0]
[1724352182492,6.96,143.68,143.61,45.0]
[1724352182803,20.02,143.68,143.61,45.0]
[1724352183306,6.96,143.68,143.61,45.0]
[1724352183518,20.02,143.68,143.61,45.0]
[1724352187302,20.02,143.68,143.62,4.01694937]
[1724352187518,20.02,143.68,143.61,45.0]
[1724352187698,20.02,143.68,143.62,4.01687418]
[1724352188008,20.02,143.68,143.61,45.0]
[1724352188201,20.02,143.68,143.62,4.01673737]
[1724352188404,20.02,143.68,143.61,45.0]
[1724352188595,20.02,143.68,143.62,4.01675481]
[1724352188780,20.02,143.68,143.61,45.0]
[1724352188986,20.02,143.68,143.62,11.66525694]
[1724352189182,20.0195,143.69,143.63,46.39154329]
[1724352189421,20.0195,143.69,143.63,45.0]
[1724352192493,6.9601,143.68,143.6,33.06]
[1724352192702,6.9601,143.68,143.61,63.26200207]
[1724352192943,6.9601,143.68,143.62,4.01629134]
[1724352193099,6.9601,143.68,143.61,45.12549]
[1724352193300,6.9601,143.68,143.62,4.01628468]
[1724352193550,6.9601,143.68,143.61,45.12549]
[1724352193833,6.9601,143.68,143.62,11.66406606]
[1724352194025,6.9601,143.68,143.63,4.0159484]
[1724352194222,6.9601,143.68,143.62,7.64810837]
[1724352194398,6.9601,143.68,143.63,4.0153583]
[1724352194601,6.9601,143.68,143.62,7.64745015]
[1724352194810,6.9601,143.68,143.61,45.12549]
[1724352195012,6.9601,143.68,143.62,7.64709757]
[1724352195226,6.9601,143.68,143.61,45.12549]
[1724352195427,6.9601,143.68,143.62,7.64709579]
[1724352195610,6.9601,143.68,143.61,45.12549]
[1724352195809,6.9601,143.68,143.62,7.64709579]
[1724352196002,6.9601,143.68,143.61,45.12549]
[1724352196434,6.9601,143.68,143.62,7.64741925]
[1724352196660,6.9601,143.68,143.61,45.12549]
[1724352196839,6.9601,143.68,143.62,7.6461664]
[1724352197038,6.9601,143.68,143.61,45.12549]
[1724352197208,6.9601,143.68,143.62,7.64613874]
[1724352197410,6.9592,143.7,143.62,19.52843096]
[1724352197639,6.9592,143.7,143.63,45.0]
[1724352197811,6.9595,143.69,143.63,45.0]
[1724352199310,6.9595,143.69,143.64,1.74276632]
[1724352199516,6.9595,143.69,143.63,45.0]
[1724352199714,6.9595,143.69,143.64,1.74275808]
[1724352199912,6.9595,143.69,143.63,45.0]
[1724352200114,6.9595,143.69,143.64,1.74275808]
[1724352200445,6.9595,143.69,143.63,45.0]
[1724352200650,37.17665941,143.71,143.64,1.8682522]
[1724352200844,37.17665941,143.71,143.65,1.7427622]
[1724352201053,37.17665941,143.71,143.64,0.12549]
[1724352201252,37.17665941,143.71,143.65,1.74268225]
[1724352201441,37.17665941,143.71,143.64,0.12549]
[1724352201648,37.17665941,143.71,143.65,1.74265373]
[1724352201852,37.17665941,143.71,143.64,0.12549]
[1724352202036,37.17665941,143.71,143.65,1.74265373]
[1724352202359,37.17665941,143.71,143.64,0.12549]
[1724352203635,13.06,143.69,143.64,0.12549]
[1724352203827,1.74019456,143.68,143.63,45.0]
[1724352204226,1.74019456,143.68,143.6,33.06]
[1724352204227,13.06,143.67,143.6,33.06]
[1724352204432,13.06,143.67,143.61,7.64293654]
[1724352204751,13.06,143.67,143.62,7.64293654]
[1724352205056,1.74039738,143.66,143.61,7.64303863]
[1724352205255,13.06,143.67,143.6,20.0]
[1724352205460,13.06,143.65,143.61,7.64278777]
[1724352205631,13.06,143.65,143.58,7.2750271]
[1724352205831,13.06,143.65,143.59,7.64279137]
[1724352206048,13.06,143.65,143.6,7.64279137]
[1724352206246,13.06,143.65,143.61,7.64279137]
[1724352206456,13.06,143.65,143.58,7.2750271]
[1724352206761,13.06,143.65,143.59,72.8934284]
[1724352207057,13.06,143.65,143.6,7.6424484]
[1724352207253,13.06,143.65,143.61,7.6424484]
[1724352207423,13.06,143.65,143.59,65.25098]
[1724352207623,13.06,143.65,143.6,7.64179544]
[1724352207932,13.06,143.65,143.61,7.64179544]
[1724352208136,13.06,143.65,143.59,65.25098]
[1724352208360,28.1061,143.67,143.6,7.64274891]
[1724352208558,28.1061,143.67,143.61,7.64274891]
[1724352208762,28.1061,143.67,143.59,65.25098]
[1724352209166,28.1061,143.67,143.6,7.64281488]
[1724352209473,28.1061,143.67,143.61,7.64281488]
[1724352209764,28.1061,143.67,143.59,78.31098]
[1724352209978,28.1061,143.67,143.6,7.64264452]
[1724352210270,28.1061,143.67,143.61,7.64264452]
[1724352210460,28.1061,143.67,143.59,78.31098]
[1724352210662,28.1061,143.67,143.6,7.64310108]
[1724352210865,28.1061,143.67,143.61,7.64310108]
[1724352211245,28.1061,143.67,143.59,78.31098]
[1724352211455,28.1061,143.67,143.6,7.64372713]
[1724352211665,28.1061,143.67,143.61,7.64372713]
[1724352211848,28.1061,143.67,143.59,78.31098]
[1724352212164,28.1061,143.67,143.6,7.64407601]
[1724352212338,28.1061,143.67,143.59,78.31098]
[1724352214680,15.0461,143.67,143.59,78.31098]
[1724352219289,15.0461,143.67,143.62,13.06]
[1724352219453,15.0461,143.67,143.63,45.0]
[1724352223365,15.0461,143.67,143.62,45.0]
[1724352223760,15.0461,143.67,143.61,45.12549]
[1724352224869,29.84648307,143.67,143.61,45.12549]
[1724352226702,1.74041754,143.66,143.61,45.0]
[1724352226878,1.74041754,143.66,143.6,45.0]
[1724352230363,28.1061,143.67,143.6,45.0]
[1724352230684,29.84660289,143.67,143.6,45.0]
[1724352231064,36.80700289,143.67,143.6,45.0]
[1724352231269,28.1061,143.67,143.6,45.0]
[1724352231461,15.0461,143.67,143.6,45.0]
[1724352235887,22.0065,143.67,143.6,45.0]
[1724352241196,21.76155552,143.66,143.6,45.0]
[1724352241370,13.06,143.66,143.6,45.0]
[1724352242267,15.0461,143.67,143.6,45.0]
[1724352243581,22.0066,143.67,143.6,45.0]
[1724352243773,23.21989235,143.67,143.6,45.0]
[1724352247376,36.27989235,143.67,143.6,45.0]
[1724352249795,29.31939235,143.67,143.6,45.0]
[1724352251398,16.25939235,143.67,143.6,45.0]
[1724352252694,15.0461,143.67,143.61,0.12549]
[1724352253380,15.0461,143.67,143.61,20.12549]
[1724352253579,15.0461,143.67,143.62,45.0]
[1724352254904,15.0461,143.67,143.63,4.01406633]
[1724352255107,15.0461,143.67,143.64,4.01406633]
[1724352255285,15.0461,143.67,143.62,45.0]
[1724352255487,15.0461,143.67,143.63,4.01381412]
[1724352255688,15.0461,143.67,143.64,4.01381412]
[1724352255903,15.0461,143.67,143.62,45.0]
[1724352256101,15.0461,143.67,143.63,4.01378738]
[1724352256297,15.0461,143.67,143.64,4.01378738]
[1724352256500,15.0461,143.67,143.65,4.01316511]
[1724352256695,15.0461,143.67,143.62,45.0]
[1724352262622,15.0461,143.67,143.63,1.74262902]
[1724352262920,15.0461,143.67,143.62,44.97006]
[1724352263104,15.0461,143.67,143.63,1.74265383]
[1724352263307,15.0461,143.67,143.62,44.97006]
[1724352268301,16.78643514,143.67,143.61,20.0]
[1724352268504,16.78643514,143.67,143.58,26.46829383]
[1724352268505,6.3189,143.66,143.58,26.46829383]
[1724352268824,13.06,143.64,143.59,6.46829383]
[1724352269006,13.06,143.64,143.6,20.0]
[1724352269200,17.73996571,143.63,143.59,6.46829383]
[1724352269406,19.3789,143.62,143.56,6.46829383]
[1724352269606,21.11991215,143.62,143.57,6.46829383]
[1724352269831,21.11991215,143.62,143.58,6.47376534]
[1724352270033,21.11991215,143.62,143.55,6.47376534]
[1724352270326,21.11991215,143.62,143.54,27.27688338]
[1724352271107,21.11991215,143.62,143.55,45.25098]
[1724352271408,21.11991215,143.62,143.56,20.0]
[1724352271601,21.11991215,143.62,143.57,45.0]
[1724352272123,21.11991215,143.62,143.56,20.0]
[1724352272430,21.11991215,143.62,143.57,7.64459046]
[1724352272722,21.11991215,143.62,143.56,7.64459046]
[1724352272926,21.11991215,143.62,143.55,0.12549]
[1724352273112,19.3789,143.62,143.55,0.12549]
[1724352273510,19.3789,143.62,143.55,45.12549]
[1724352274023,21.12007619,143.62,143.55,45.12549]
[1724352274217,21.12007619,143.62,143.56,20.0]
[1724352275035,15.8798,143.61,143.55,45.0]
[1724352275399,15.8798,143.61,143.54,45.0]
[1724352275604,15.8798,143.61,143.55,20.0]
[1724352290945,15.8798,143.61,143.55,33.06]
[1724352291140,15.8798,143.61,143.57,13.06]
[1724352291550,15.8798,143.61,143.58,45.25098]
[1724352292133,21.9226,143.65,143.59,13.06]
[1724352292325,21.9226,143.65,143.6,45.0]
[1724352293127,21.9226,143.65,143.61,0.25098]
[1724352293747,21.9226,143.65,143.61,0.12549]
[1724352295455,21.9226,143.65,143.61,13.18549]
[1724352295651,21.9226,143.65,143.62,45.0]
[1724352297831,15.2926,143.65,143.62,45.0]
[1724352298539,15.2926,143.65,143.63,0.12549]
[1724352305459,22.5017,143.69,143.63,13.18549]
[1724352305639,22.5017,143.69,143.64,45.12549]
[1724352306234,22.5017,143.69,143.65,45.0]
[1724352306438,22.5017,143.69,143.63,45.12549]
[1724352306840,22.5017,143.69,143.63,0.12549]
[1724352307766,13.06,143.68,143.63,0.12549]
[1724352308061,13.06,143.68,143.62,45.0]
[1724352308442,14.80025199,143.68,143.62,45.0]
[1724352308647,13.06,143.66,143.58,20.0]
[1724352308866,16.339,143.65,143.59,20.0]
[1724352309534,22.968,143.65,143.59,20.0]
[1724352309736,22.968,143.65,143.58,20.0]
[1724352310157,22.968,143.65,143.59,0.25098]
[1724352310356,22.968,143.65,143.59,45.25098]
[1724352310555,22.968,143.65,143.6,20.0]
[1724352312664,22.968,143.65,143.61,45.0]
[1724352313939,22.968,143.65,143.59,0.25098]
[1724352314243,22.968,143.65,143.59,45.25098]
[1724352323154,22.968,143.65,143.6,4.01647158]
[1724352323356,22.968,143.65,143.61,46.7429122]
[1724352323678,22.968,143.65,143.61,45.0]
[1724352325576,22.968,143.65,143.62,1.99378691]
[1724352325756,22.968,143.65,143.62,4.2658639]
[1724352325958,16.339,143.65,143.63,1.74267772]
[1724352326176,16.339,143.65,143.63,45.0]
[1724352326675,16.5423,143.68,143.63,45.0]
[1724352326863,16.5423,143.68,143.64,13.06]
[1724352327070,23.0517,143.73,143.66,13.06]
[1724352327258,30.0092,143.73,143.67,1.39189605]
[1724352327468,30.0092,143.73,143.66,13.06]
[1724352327650,23.0517,143.73,143.66,13.06]
[1724352327855,23.0517,143.73,143.67,65.12549]
[1724352328374,23.0517,143.73,143.67,65.0]
[1724352328552,23.0517,143.73,143.67,20.0]
[1724352328754,23.0517,143.73,143.65,20.12549]
[1724352328970,23.0517,143.73,143.66,45.12549]
[1724352329257,23.0517,143.73,143.67,20.0]
[1724352329576,23.0517,143.73,143.66,45.12549]
[1724352329777,13.06,143.72,143.66,0.12549]
[1724352329964,13.06,143.72,143.66,20.0]
[1724352331156,30.0092,143.73,143.66,20.0]
[1724352334588,13.06,143.72,143.66,20.0]
[1724352339389,23.0517,143.73,143.67,45.0]
[1724352340902,30.0091,143.73,143.67,45.0]
[1724352341474,13.06,143.72,143.66,20.0]
[1724352341673,13.06,143.72,143.65,20.12549]
[1724352341899,13.06,143.72,143.66,45.12549]
[1724352342898,20.018,143.72,143.66,45.0]
[1724352345823,30.0092,143.73,143.66,45.0]
[1724352353139,6.958,143.72,143.66,45.0]
[1724352353341,20.018,143.72,143.65,20.12549]
[1724352353511,20.018,143.72,143.65,0.12549]
[1724352353821,20.018,143.72,143.65,46.8679356]
[1724352354221,20.018,143.72,143.66,20.0]
[1724352357349,6.9584,143.71,143.65,45.0]
[1724352357646,15.2986,143.69,143.61,20.33695512]
[1724352357846,15.2986,143.69,143.62,58.64502934]
[1724352358032,15.2986,143.69,143.63,9.38335933]
[1724352358220,15.2986,143.69,143.64,46.86787767]
[1724352358523,15.2986,143.69,143.64,45.12549]
[1724352359244,15.2986,143.69,143.65,1.7423789]
[1724352359947,15.2986,143.69,143.65,1.74238837]
[1724352362140,15.2986,143.69,143.64,45.12549]
[1724352362348,15.2986,143.69,143.65,1.86786972]
[1724352362511,15.2986,143.69,143.65,0.12549]
[1724352362934,15.2986,143.69,143.65,1.86787821]
[1724352363213,15.2986,143.69,143.65,0.12549]
[1724352365929,15.2986,143.69,143.61,7.27695512]
[1724352366126,15.2986,143.69,143.62,40.69745725]
[1724352366328,15.2986,143.69,143.63,7.63745725]
[1724352366624,15.2986,143.69,143.64,7.63745725]
[1724352366824,15.2986,143.69,143.64,20.0]
[1724352367026,15.2986,143.69,143.64,27.63745725]
[1724352367227,15.2986,143.69,143.64,20.0]
[1724352367448,15.2986,143.69,143.63,27.63542515]
[1724352367652,34.737,143.69,143.64,45.0]
[1724352368521,6.9607,143.67,143.61,7.27695512]
[1724352368720,1.74072043,143.67,143.62,7.63671942]
[1724352368922,13.06,143.64,143.6,7.63671942]
[1724352369143,1.74083339,143.63,143.57,255.2]
[1724352369321,1.74083339,143.63,143.55,33.06]
[1724352369518,1.74083339,143.63,143.58,7.63790176]
[1724352369725,1.74083339,143.63,143.55,40.34038594]
[1724352370114,13.06,143.64,143.57,13.06]
[1724352370427,16.4912,143.65,143.58,13.18549]
[1724352370628,16.4912,143.65,143.59,0.12549]
[1724352370938,16.4912,143.65,143.59,20.12549]
[1724352371843,16.4912,143.65,143.6,45.0]
[1724352380032,16.4912,143.65,143.59,20.0]
[1724352381748,1.74067336,143.64,143.59,20.0]
[1724352381932,6.2003,143.63,143.58,0.12549]
[1724352382134,6.2003,143.63,143.58,45.25098]
[1724352382454,6.2003,143.63,143.59,20.0]
[1724352387853,6.2003,143.63,143.58,45.0]
[1724352388152,29.3628,143.61,143.55,7.28038594]
[1724352388468,1.74126948,143.6,143.56,20.0]
[1724352388676,1.74126948,143.6,143.52,13.06]
[1724352389953,16.3028,143.61,143.53,20.0]
[1724352390135,16.3028,143.61,143.54,13.06]
[1724352390335,16.3028,143.61,143.56,13.06]
[1724352393452,16.3028,143.61,143.55,0.12549]
[1724352393662,16.3028,143.61,143.56,0.12549]
[1724352398264,16.3028,143.61,143.56,0.25098]
[1724352398844,16.3028,143.61,143.57,13.06]
[1724352399062,16.3028,143.61,143.58,45.0]
[1724352405954,6.2003,143.63,143.59,0.12549]
[1724352406282,16.606,143.65,143.59,33.31098]
[1724352406471,16.606,143.65,143.61,13.06]
[1724352406857,16.606,143.65,143.62,45.0]
[1724352409882,16.606,143.65,143.59,33.31098]
[1724352410178,16.606,143.65,143.6,45.0]
[1724352410362,16.606,143.65,143.61,0.12549]
[1724352413780,16.606,143.65,143.61,0.25098]
[1724352415183,6.6023,143.67,143.61,13.31098]
[1724352415378,6.6023,143.67,143.62,45.0]
[1724352415685,6.6023,143.67,143.63,0.25098]
[1724352416281,6.6023,143.67,143.63,0.12549]
[1724352416967,6.6023,143.67,143.62,45.0]
[1724352418061,6.6023,143.67,143.63,4.01296965]
[1724352418786,6.6023,143.67,143.64,45.0]
[1724352423191,6.6023,143.67,143.61,13.18549]
[1724352423359,6.6023,143.67,143.62,45.25098]
[1724352425291,6.6023,143.67,143.58,20.0]
[1724352425292,13.06,143.66,143.58,20.0]
[1724352425462,13.06,143.66,143.6,5.75779436]
[1724352425784,6.6023,143.67,143.61,21.74278662]
[1724352425954,6.6023,143.67,143.61,20.0]
[1724352426154,6.6023,143.67,143.59,24.01502185]
[1724352426375,1.74053637,143.66,143.6,5.75780945]
[1724352426673,1.74053637,143.66,143.61,21.7427876]
[1724352426853,1.74053637,143.66,143.61,20.0]
[1724352427278,1.74053637,143.66,143.6,4.01496848]
[1724352427481,1.74053637,143.66,143.61,1.74278636]
[1724352427682,1.74053637,143.66,143.61,20.0]
[1724352427866,1.74053637,143.66,143.6,4.01496848]
[1724352428070,1.74053637,143.66,143.61,1.74279402]
[1724352428475,13.5628,143.67,143.61,1.74279402]
[1724352428778,13.5628,143.67,143.6,4.01496848]
[1724352428999,13.5628,143.67,143.61,1.74281454]
[1724352429286,6.6023,143.67,143.61,46.74281454]
[1724352429494,6.6023,143.67,143.62,13.06]
[1724352429705,6.6023,143.67,143.62,14.80272015]
[1724352429904,6.6023,143.67,143.62,14.8027199]
[1724352430498,6.6023,143.67,143.63,45.0]
[1724352437298,15.4294,143.68,143.64,13.31098]
[1724352437809,15.4294,143.68,143.65,45.0]
[1724352439407,12.9919,143.71,143.65,45.0]
[1724352446411,6.0334,143.71,143.65,45.0]
[1724352448326,6.0334,143.71,143.66,1.74245594]
[1724352448619,6.0334,143.71,143.65,45.0]
[1724352448816,6.0334,143.71,143.66,1.74238242]
[1724352449026,6.0334,143.71,143.65,45.0]
[1724352449201,6.0334,143.71,143.66,1.74238242]
[1724352449402,6.0334,143.71,143.65,45.0]
[1724352449605,6.0334,143.71,143.66,1.99334691]
[1724352449802,6.0334,143.71,143.66,0.25098]
[1724352450122,6.0334,143.71,143.66,13.31098]
[1724352450428,6.0334,143.71,143.67,45.0]
[1724352452894,16.5514,143.72,143.68,14.92766124]
[1724352453127,16.5514,143.72,143.69,45.12549]
[1724352453393,22.5147,143.75,143.69,45.12549]
[1724352454591,42.5312,143.75,143.69,45.12549]
[1724352454794,42.5312,143.75,143.7,45.0]
[1724352455030,42.5312,143.75,143.69,0.12549]
[1724352455793,35.5747,143.75,143.69,0.12549]
[1724352460220,15.9707,143.78,143.7,13.06]
[1724352460543,15.9707,143.78,143.71,45.12549]
[1724352460844,15.9707,143.78,143.71,45.25098]
[1724352462514,22.9258,143.78,143.71,45.25098]
[1724352462719,14.7991391,143.77,143.71,45.25098]
[1724352463027,1.73919557,143.76,143.71,45.25098]
[1724352463228,14.79919557,143.76,143.71,45.25098]
[1724352464544,21.75519557,143.76,143.71,0.12549]
[1724352464749,20.016,143.76,143.7,45.0]
[1724352465043,6.0115,143.75,143.7,45.0]
[1724352465428,14.79934457,143.74,143.66,13.06]
[1724352465735,1.73943689,143.74,143.67,20.0]
[1724352466322,6.0115,143.75,143.67,20.0]
[1724352466628,1.73943686,143.74,143.68,0.25098]
[1724352466838,1.73943686,143.74,143.68,45.25098]
[1724352467037,6.0115,143.75,143.69,20.0]
[1724352468448,6.0115,143.75,143.7,45.0]
[1724352472850,12.968,143.75,143.7,45.0]
[1724352473020,6.0115,143.75,143.7,45.0]
[1724352478141,6.9561,143.76,143.7,45.0]
[1724352478767,6.9558,143.77,143.7,45.0]
[1724352478954,20.0158,143.77,143.7,45.0]
[1724352479961,6.9558,143.77,143.7,45.0]
[1724352480264,6.9558,143.77,143.7,58.06]
[1724352480440,6.9558,143.77,143.71,0.25098]
[1724352482940,22.9259,143.78,143.71,0.25098]
[1724352483567,15.9707,143.78,143.71,0.25098]
[1724352483941,22.9258,143.78,143.71,0.25098]
[1724352484665,20.5458067,143.79,143.72,13.06]
[1724352484853,20.5458067,143.79,143.73,46.36952224]
[1724352486348,13.5912067,143.79,143.74,1.2440897]
[1724352486543,13.5912067,143.79,143.73,45.12549]
[1724352488245,13.5912067,143.79,143.74,13.06]
[1724352488246,0.5312067,143.79,143.74,13.06]
[1724352488464,0.5312067,143.79,143.75,45.25098]
[1724352488672,0.5312067,143.79,143.75,0.12549]
[1724352488856,0.5312067,143.79,143.76,45.0]
[1724352489163,0.5312067,143.79,143.75,0.12549]
[1724352489370,0.5312067,143.79,143.74,0.12549]
[1724352489777,0.5312067,143.79,143.74,20.12549]
[1724352489961,0.5312067,143.79,143.75,45.12549]
[1724352490159,0.5312067,143.79,143.76,0.12549]
[1724352490360,0.5312067,143.79,143.77,39.3418]
[1724352490689,0.5312067,143.79,143.75,0.12549]
[1724352491354,0.5312067,143.79,143.74,20.0]
[1724352492176,7.4859067,143.79,143.74,20.0]
[1724352492738,7.4859067,143.79,143.73,15.62129]
[1724352492739,6.955,143.78,143.73,15.62129]
[1724352492963,6.955,143.78,143.74,45.0]
[1724352493646,6.9555,143.77,143.74,45.0]
[1724352493858,6.9551,143.78,143.74,45.0]
[1724352497280,6.9556,143.77,143.74,45.0]
[1724352497483,20.0151,143.78,143.74,45.0]
[1724352497799,6.9556,143.77,143.74,45.0]
[1724352498800,20.016,143.76,143.69,21.6424]
[1724352498982,20.016,143.76,143.7,24.01746358]
[1724352499181,20.016,143.76,143.7,20.0]
[1724352499871,6.9565,143.75,143.7,20.0]
[1724352500396,20.017,143.74,143.67,27.27040786]
[1724352500570,20.017,143.74,143.68,11.68011684]
[1724352500770,20.017,143.74,143.67,6.47536308]
[1724352500999,20.017,143.74,143.68,11.68150354]
[1724352501165,20.017,143.74,143.66,17.73520225]
[1724352501372,20.017,143.74,143.67,11.68139113]
[1724352501589,20.017,143.74,143.68,4.01973608]
[1724352501765,20.017,143.74,143.69,0.25098]
[1724352501966,20.017,143.74,143.68,4.27016317]
[1724352502166,20.017,143.74,143.68,0.25098]
[1724352502613,20.017,143.74,143.68,45.25098]
[1724352502776,20.017,143.74,143.69,20.0]
[1724352503099,20.017,143.74,143.7,45.0]
[1724352505687,20.017,143.74,143.69,20.0]
[1724352505896,20.017,143.74,143.68,20.25098]
[1724352506095,20.017,143.74,143.69,45.0]
[1724352507182,6.9575,143.73,143.69,45.0]